bitfinex/quotes_BTCUSD_20240727
["timestamp","ask_amount","ask_price","bid_price","bid_amount"]
[1722067311916,0.00084,68257.0,68256.0,1.353429]
[1722067312119,0.00084,68257.0,68256.0,1.75368857]
[1722067312279,0.00084,68257.0,68256.0,2.04670257]
[1722067312689,0.00084,68257.0,68256.0,2.33971657]
[1722067313715,0.00084,68257.0,68256.0,2.34171657]
[1722067314348,0.00084,68257.0,68256.0,2.32971657]
[1722067314548,0.00084,68257.0,68256.0,2.44371657]
[1722067315163,0.00084,68257.0,68256.0,2.56001657]
[1722067315480,0.00084,68257.0,68256.0,2.57401657]
[1722067316256,0.00084,68257.0,68256.0,2.56001657]
[1722067316658,0.00084,68257.0,68256.0,2.26500257]
[1722067316875,0.00084,68257.0,68256.0,2.01500257]
[1722067317064,0.00084,68257.0,68256.0,2.26500257]
[1722067317481,0.00084,68257.0,68256.0,2.25100257]
[1722067317669,0.00084,68257.0,68256.0,2.26700257]
[1722067317877,0.00084,68257.0,68256.0,2.26500257]
[1722067318238,0.00084,68257.0,68256.0,2.55801657]
[1722067318432,0.00084,68257.0,68256.0,2.28100257]
[1722067320752,0.00084,68257.0,68256.0,2.27900257]
[1722067324488,0.00084,68257.0,68256.0,2.40072578]
[1722067326509,0.00030083,68257.0,68256.0,2.40072578]
[1722067328877,0.00030083,68257.0,68256.0,2.40272578]
[1722067329565,0.00030083,68257.0,68256.0,2.40072578]
[1722067329965,0.00030083,68257.0,68256.0,2.40072845]
[1722067330454,0.00030083,68257.0,68256.0,2.40072849]
[1722067331441,0.00030083,68257.0,68256.0,2.4007285]
[1722067333066,0.00030083,68257.0,68256.0,2.4027285]
[1722067333892,0.00030083,68257.0,68256.0,2.6957425]
[1722067334037,0.00030083,68257.0,68256.0,2.1507285]
[1722067334439,0.00030083,68257.0,68256.0,2.4007285]
[1722067334647,0.00030083,68257.0,68256.0,2.1507285]
[1722067334847,0.00030083,68257.0,68256.0,2.4007285]
[1722067335046,0.00030083,68257.0,68256.0,2.1903285]
[1722067335251,0.00030083,68257.0,68256.0,2.2745285]
[1722067335449,0.00030083,68257.0,68256.0,2.5675425]
[1722067335650,0.00030083,68257.0,68256.0,2.2745285]
[1722067336943,0.00030083,68257.0,68256.0,2.2745297]
[1722067338819,0.0664,68270.0,68269.0,1.054733]
[1722067338820,0.06363324,68270.0,68269.0,1.054733]
[1722067339792,0.09157244,68275.0,68274.0,0.761722]
[1722067341866,0.15527244,68275.0,68274.0,0.771722]
[1722067342066,0.15527244,68275.0,68274.0,0.779722]
[1722067344628,0.00826,68276.0,68275.0,1.054642]
[1722067345822,0.00826,68276.0,68275.0,1.061642]
[1722067346036,0.00826,68276.0,68275.0,1.070642]
[1722067347632,0.00826,68276.0,68275.0,1.413574]
[1722067347813,0.00826,68276.0,68275.0,1.557174]
[1722067348050,0.00826,68276.0,68275.0,1.67888454]
[1722067348823,0.00826,68276.0,68275.0,1.38595254]
[1722067350468,0.00826,68276.0,68275.0,1.38595011]
[1722067352167,0.00826,68276.0,68275.0,1.264242]
[1722067353415,0.00826,68276.0,68275.0,1.201742]
[1722067353725,0.00826,68276.0,68275.0,1.120642]
[1722067368849,0.00826,68276.0,68275.0,0.77771]
[1722067369020,0.08356,68276.0,68275.0,0.77771]
[1722067373700,0.00826,68276.0,68275.0,0.77771]
[1722067378594,0.00790419,68276.0,68275.0,0.77771]
[1722067379725,0.00790419,68276.0,68275.0,1.070642]
[1722067380298,0.00790419,68276.0,68275.0,1.134442]
[1722067380495,0.00754275,68276.0,68275.0,1.134442]
[1722067381165,0.00754275,68276.0,68275.0,1.184442]
[1722067381757,0.00754275,68276.0,68275.0,1.175442]
[1722067381927,0.00754275,68276.0,68275.0,1.181442]
[1722067382305,0.00754275,68276.0,68275.0,1.168442]
[1722067382504,0.00754275,68276.0,68275.0,1.182442]
[1722067383272,0.00754275,68276.0,68275.0,1.192442]
[1722067383768,0.00754275,68276.0,68275.0,1.182442]
[1722067383971,0.00754275,68276.0,68275.0,1.118642]
[1722067384177,0.00754275,68276.0,68275.0,1.131642]
[1722067385353,0.00754275,68276.0,68275.0,1.081642]
[1722067385610,0.00754275,68276.0,68275.0,1.131642]
[1722067386681,0.00754275,68276.0,68275.0,1.081642]
[1722067387030,0.00754275,68276.0,68275.0,1.131642]
[1722067388576,0.00754275,68276.0,68275.0,1.081642]
[1722067389388,0.00754275,68276.0,68275.0,1.131642]
[1722067390500,0.00754275,68276.0,68275.0,1.081642]
[1722067390706,0.00754275,68276.0,68275.0,0.495778]
[1722067390959,0.08834275,68276.0,68275.0,0.495778]
[1722067391330,0.08989695,68276.0,68275.0,0.495778]
[1722067391732,0.08834275,68276.0,68275.0,0.05638]
[1722067391959,0.8342914,68276.0,68275.0,0.05638]
[1722067392159,0.72435706,68276.0,68275.0,0.05638]
[1722067392375,0.72280286,68276.0,68275.0,0.05638]
[1722067392925,0.72280286,68276.0,68271.0,0.02938]
[1722067392926,0.146468,68275.0,68271.0,0.02938]
[1722067393101,0.11148781,68273.0,68271.0,0.175854]
[1722067393243,0.1425,68272.0,68271.0,0.175854]
[1722067393450,0.23043115,68272.0,68271.0,0.02938]
[1722067394051,0.23043115,68272.0,68271.0,0.03838]
[1722067394663,0.23043115,68272.0,68271.0,0.02938]
[1722067395459,0.1440542,68272.0,68271.0,0.02938]
[1722067396274,0.1440542,68272.0,68271.0,0.04138]
[1722067396671,0.1440542,68272.0,68271.0,0.175855]
[1722067396963,0.1440542,68272.0,68271.0,0.186855]
[1722067397462,0.1440542,68272.0,68271.0,0.187779]
[1722067398026,0.1440542,68272.0,68271.0,0.201779]
[1722067398444,0.20997126,68272.0,68271.0,0.201779]
[1722067398656,0.20997126,68272.0,68271.0,0.494729]
[1722067398847,0.20997126,68272.0,68271.0,0.480729]
[1722067399048,0.20997126,68272.0,68271.0,0.773679]
[1722067399247,0.20997126,68272.0,68271.0,0.493729]
[1722067399486,0.20841706,68272.0,68271.0,0.493729]
[1722067401065,0.1425,68272.0,68271.0,0.493729]
[1722067401282,0.20840992,68272.0,68271.0,0.493729]
[1722067404602,0.20840081,68272.0,68271.0,0.493729]
[1722067407357,0.20840081,68272.0,68271.0,0.786679]
[1722067408092,0.1425,68272.0,68271.0,0.786679]
[1722067408286,0.20839923,68272.0,68271.0,0.786679]
[1722067408812,0.12759923,68272.0,68271.0,0.786679]
[1722067410174,0.06589923,68272.0,68271.0,0.786679]
[1722067411597,0.0015542,68273.0,68272.0,0.761742]
[1722067412796,0.0015542,68273.0,68272.0,0.773742]
[1722067412999,0.0015542,68273.0,68272.0,1.212687]
[1722067413262,0.04393566,68275.0,68274.0,0.761722]
[1722067413375,0.00754275,68276.0,68275.0,0.439398]
[1722067413579,0.00754275,68276.0,68275.0,1.025262]
[1722067414198,0.00909695,68276.0,68275.0,1.025262]
[1722067414407,0.00754275,68276.0,68275.0,1.025262]
[1722067414666,0.00754275,68276.0,68275.0,1.031262]
[1722067414860,0.05148276,68276.0,68275.0,1.031262]
[1722067415067,0.05148276,68276.0,68275.0,1.039262]
[1722067415476,0.05148276,68276.0,68275.0,1.478194]
[1722067415676,0.00754275,68276.0,68275.0,2.27376557]
[1722067415946,0.00754275,68276.0,68275.0,1.98083357]
[1722067416147,0.00754275,68276.0,68275.0,1.73083357]
[1722067416351,0.00754275,68276.0,68275.0,1.85254017]
[1722067416497,0.00754275,68276.0,68275.0,2.10254017]
[1722067416700,0.00754275,68276.0,68275.0,1.84654017]
[1722067417085,0.00754275,68276.0,68275.0,1.85254017]
[1722067417647,0.00754275,68276.0,68275.0,1.84654017]
[1722067417845,0.00754275,68276.0,68275.0,2.08854017]
[1722067418048,0.00754275,68276.0,68275.0,2.11654017]
[1722067418202,0.00754275,68276.0,68275.0,1.86654017]
[1722067418407,0.00754275,68276.0,68275.0,2.10253864]
[1722067418630,0.00754275,68276.0,68275.0,2.11653864]
[1722067420966,0.00014993,68278.0,68277.0,1.795538]
[1722067421171,0.00014993,68278.0,68277.0,2.46762664]
[1722067421366,0.00014993,68278.0,68277.0,2.56762664]
[1722067421571,0.00014993,68278.0,68277.0,2.73884557]
[1722067421734,0.00014993,68278.0,68277.0,2.86053042]
[1722067422291,0.00014993,68278.0,68277.0,2.87453042]
[1722067423469,0.00014993,68278.0,68277.0,2.88853042]
[1722067424224,0.00014993,68278.0,68277.0,2.63653042]
[1722067424397,0.00014993,68278.0,68277.0,2.89782881]
[1722067424552,0.00014993,68278.0,68277.0,2.64582881]
[1722067424745,0.00014993,68278.0,68277.0,2.89782881]
[1722067424952,0.00014993,68278.0,68277.0,2.89782487]
[1722067427431,0.00014993,68278.0,68277.0,2.79762487]
[1722067427635,0.00634359,68280.0,68279.0,0.05]
[1722067427833,0.00634359,68280.0,68279.0,2.08433748]
[1722067428217,0.00634359,68280.0,68279.0,1.96265657]
[1722067428427,0.00634359,68280.0,68279.0,2.08434083]
[1722067429069,0.00634359,68280.0,68279.0,2.08634083]
[1722067430701,0.00634359,68280.0,68279.0,2.10034083]
[1722067431008,0.00634359,68280.0,68279.0,2.47745583]
[1722067431369,0.00634359,68280.0,68279.0,2.19854083]
[1722067431799,0.00634359,68280.0,68279.0,2.19854082]
[1722067431931,0.00634359,68280.0,68279.0,2.07685657]
[1722067432489,0.00634359,68280.0,68279.0,2.19854082]
[1722067432690,0.00634359,68280.0,68279.0,2.07685657]
[1722067434037,0.00629586,68280.0,68279.0,2.07685657]
[1722067434795,0.00629586,68280.0,68279.0,1.82485657]
[1722067435010,0.00629586,68280.0,68279.0,2.07685657]
[1722067435619,0.00629586,68280.0,68279.0,2.36977157]
[1722067435843,0.00629586,68280.0,68279.0,2.07685657]
[1722067436409,0.00629586,68280.0,68279.0,2.19854188]
[1722067436995,0.00629586,68280.0,68279.0,2.49145688]
[1722067437191,0.00629586,68280.0,68279.0,2.19854188]
[1722067437584,0.00629586,68280.0,68279.0,2.49145688]
[1722067438011,0.00629586,68280.0,68279.0,2.19854188]
[1722067438512,0.00629586,68280.0,68279.0,2.19854186]
[1722067440205,0.00629586,68280.0,68279.0,2.49145686]
[1722067440653,0.00629586,68280.0,68279.0,2.19854186]
[1722067441055,0.00629586,68280.0,68279.0,2.19654186]
[1722067441268,0.00629586,68280.0,68279.0,2.19654271]
[1722067441882,0.00629586,68280.0,68279.0,1.82485657]
[1722067442101,0.00629586,68280.0,68279.0,1.86234862]
[1722067442312,0.00629586,68280.0,68279.0,1.59875657]
[1722067442965,0.00629586,68280.0,68279.0,1.68295657]
[1722067443374,0.00629586,68280.0,68279.0,1.93295657]
[1722067443579,0.00629586,68280.0,68279.0,2.05465118]
[1722067444224,0.00629586,68280.0,68279.0,2.19595118]
[1722067444660,0.00629586,68280.0,68279.0,2.19594221]
[1722067445319,0.00629586,68280.0,68279.0,1.94494221]
[1722067445528,0.00629586,68280.0,68279.0,2.48885721]
[1722067446245,0.00629586,68280.0,68279.0,2.47485721]
[1722067446449,0.00629586,68280.0,68279.0,2.48885721]
[1722067447118,0.00826,68287.0,68286.0,1.910867]
[1722067447317,0.00826,68287.0,68286.0,2.45869221]
[1722067447720,0.00826,68287.0,68286.0,2.33700657]
[1722067447955,0.00826,68287.0,68286.0,2.45867393]
[1722067448732,0.00826,68287.0,68286.0,2.47267393]
[1722067448977,0.00826,68287.0,68286.0,2.46067393]
[1722067449591,0.00826,68287.0,68286.0,2.47467393]
[1722067449709,0.00826,68287.0,68286.0,2.48867393]
[1722067450355,0.00826,68287.0,68286.0,2.46067393]
[1722067450762,0.00826,68287.0,68286.0,2.47467393]
[1722067451232,0.00826,68287.0,68286.0,2.36700657]
[1722067451363,0.00826,68287.0,68286.0,2.48867381]
[1722067451567,0.00826,68287.0,68286.0,2.49788687]
[1722067451775,0.00826,68287.0,68286.0,2.49788517]
[1722067452871,0.00826,68287.0,68286.0,2.49788433]
[1722067453673,0.00826,68287.0,68286.0,2.41368433]
[1722067453933,0.00826,68287.0,68286.0,2.49788433]
[1722067454753,0.00826,68287.0,68286.0,2.49788404]
[1722067455396,0.00826,68287.0,68286.0,2.41368404]
[1722067455615,0.00826,68287.0,68286.0,2.49788404]
[1722067457025,0.00826,68287.0,68286.0,2.24588404]
[1722067457197,0.00826,68287.0,68286.0,1.86879904]
[1722067457402,0.00826,68287.0,68286.0,1.79069904]
[1722067457602,0.00826,68287.0,68286.0,1.78148598]
[1722067458034,0.00826,68287.0,68286.0,1.78150429]
[1722067458869,0.00826,68287.0,68286.0,1.76750429]
[1722067459084,0.00826,68287.0,68286.0,1.79050429]
[1722067459234,0.00826,68287.0,68286.0,1.80450429]
[1722067459631,0.00826,68287.0,68286.0,2.05450429]
[1722067459863,0.00826,68287.0,68286.0,2.04050429]
[1722067460233,0.00826,68287.0,68286.0,2.05450429]
[1722067460437,0.00826,68287.0,68286.0,2.01750429]
[1722067460659,0.00826,68287.0,68286.0,2.19580429]
[1722067460874,0.00826,68287.0,68286.0,2.48868929]
[1722067461079,0.00826,68287.0,68286.0,2.19580429]
[1722067462223,0.00826,68287.0,68286.0,2.48868929]
[1722067464913,0.00826,68287.0,68286.0,2.48867433]
[1722067465690,0.00826,68287.0,68286.0,2.19578933]
[1722067465942,0.00826,68287.0,68286.0,1.94728933]
[1722067466188,0.00826,68287.0,68286.0,2.03148933]
[1722067468220,0.00826,68287.0,68286.0,2.03149539]
[1722067470904,0.00826,68287.0,68286.0,1.78149539]
[1722067471773,0.00826,68287.0,68286.0,2.31531153]
[1722067471932,0.00826,68287.0,68286.0,2.12962653]
[1722067472337,0.00826,68287.0,68286.0,2.13162653]
[1722067472659,0.00826,68287.0,68286.0,2.04759674]
[1722067472868,0.00826,68287.0,68286.0,2.13179674]
[1722067473065,0.00826,68287.0,68286.0,1.76749674]
[1722067473267,0.00826,68287.0,68286.0,1.79049674]
[1722067474147,0.00826,68287.0,68286.0,1.77649674]
[1722067474333,0.00826,68287.0,68286.0,2.04049674]
[1722067474982,0.00826,68287.0,68286.0,2.02649519]
[1722067475194,0.00826,68287.0,68286.0,2.04049519]
[1722067475423,0.00826,68287.0,68286.0,2.34738019]
[1722067475625,0.00826,68287.0,68286.0,2.45948019]
[1722067475832,0.00826,68287.0,68286.0,2.47348019]
[1722067476046,0.00826,68287.0,68286.0,2.48748019]
[1722067476252,0.00826,68287.0,68286.0,2.58748019]
[1722067476460,0.00826,68287.0,68286.0,2.75090379]
[1722067476662,0.00826,68287.0,68286.0,2.81173134]
[1722067476883,0.00826,68287.0,68286.0,3.495137]
[1722067477080,0.00826,68287.0,68286.0,3.64302726]
[1722067477307,0.00826,68287.0,68286.0,3.55546625]
[1722067477630,0.00826,68287.0,68286.0,3.54146625]
[1722067478242,1e-06,68287.0,68286.0,3.46692734]
[1722067478483,1e-06,68287.0,68286.0,3.48092734]
[1722067478690,1e-06,68287.0,68286.0,3.55576212]
[1722067478906,1e-06,68287.0,68286.0,3.60258696]
[1722067479294,1e-06,68287.0,68286.0,3.68218788]
[1722067480564,1e-06,68287.0,68286.0,2.93803741]
[1722067481584,1e-06,68287.0,68286.0,2.92403741]
[1722067481713,1e-06,68287.0,68286.0,2.93771761]
[1722067481917,1e-06,68287.0,68286.0,2.92371761]
[1722067482246,1e-06,68287.0,68286.0,2.93771761]
[1722067483446,1e-06,68287.0,68286.0,3.06717367]
[1722067483710,1e-06,68287.0,68286.0,2.93821423]
[1722067484337,1e-06,68287.0,68286.0,3.23109923]
[1722067484555,1e-06,68287.0,68286.0,2.93821423]
[1722067488272,1e-06,68287.0,68286.0,2.65263141]
[1722067488473,1e-06,68287.0,68286.0,2.93370028]
[1722067489088,1e-06,68287.0,68286.0,2.97743443]
[1722067489883,1e-06,68287.0,68286.0,2.72350028]
[1722067490085,1e-06,68287.0,68286.0,2.76725026]
[1722067490398,1e-06,68287.0,68286.0,2.93370028]
[1722067490788,1e-06,68287.0,68286.0,2.77428685]
[1722067490990,1e-06,68287.0,68286.0,3.06717185]
[1722067491192,1e-06,68287.0,68286.0,2.93645975]
[1722067491595,1e-06,68287.0,68286.0,2.93612515]
[1722067492791,1e-06,68287.0,68286.0,2.68412515]
[1722067493183,1e-06,68287.0,68286.0,2.93612515]
[1722067493369,1e-06,68287.0,68286.0,2.63419237]
[1722067494134,1e-06,68287.0,68286.0,2.57336753]
[1722067494909,1e-06,68287.0,68286.0,2.57536753]
[1722067495104,1e-06,68287.0,68286.0,2.57537495]
[1722067495685,1e-06,68287.0,68286.0,2.57629895]
[1722067496315,1e-06,68287.0,68286.0,2.45463057]
[1722067496495,1e-06,68287.0,68286.0,2.57629856]
[1722067498494,1e-06,68287.0,68286.0,2.5762981]
[1722067499200,1e-06,68287.0,68286.0,2.4501981]
[1722067500158,1e-06,68287.0,68286.0,2.1981981]
[1722067500376,1e-06,68287.0,68286.0,2.4501981]
[1722067501147,1e-06,68287.0,68286.0,2.19819805]
[1722067501361,1e-06,68287.0,68286.0,2.45019805]
[1722067503134,1e-06,68287.0,68286.0,2.75022216]
[1722067503314,1e-06,68287.0,68286.0,2.79398189]
[1722067503538,1e-06,68287.0,68286.0,3.04310716]
[1722067504300,0.00826,68293.0,68288.0,2.080703]
[1722067504502,0.00826,68293.0,68292.0,0.99327]
[1722067504702,0.00826,68293.0,68292.0,2.24376076]
[1722067504863,0.00826,68293.0,68292.0,2.42813363]
[1722067505071,0.082,68309.0,68297.0,0.624218]
[1722067505072,0.0015542,68307.0,68297.0,0.624218]
[1722067505275,0.002,68309.0,68297.0,0.624218]
[1722067505276,0.002,68309.0,68297.0,1.45838576]
[1722067505477,0.002,68309.0,68297.0,2.33689976]
[1722067505677,0.002,68309.0,68297.0,2.79115666]
[1722067506435,0.002,68309.0,68297.0,2.80515666]
[1722067506638,0.002,68309.0,68297.0,2.64373776]
[1722067507401,0.002,68309.0,68297.0,2.65773776]
[1722067507623,0.002,68309.0,68297.0,2.79623776]
[1722067507798,0.002,68309.0,68297.0,2.66058657]
[1722067508000,0.002,68309.0,68297.0,2.78222957]
[1722067508200,0.002,68309.0,68297.0,2.93017742]
[1722067508682,0.002,68309.0,68297.0,2.95817742]
[1722067509101,0.002,68309.0,68297.0,2.94417742]
[1722067509569,0.002,68309.0,68297.0,2.95817742]
[1722067509769,0.002,68309.0,68297.0,2.79622957]
[1722067510011,0.002,68309.0,68297.0,2.95842741]
[1722067510422,0.002,68309.0,68297.0,2.94442741]
[1722067510825,0.002,68309.0,68297.0,2.65772957]
[1722067510826,0.0666,68303.0,68297.0,2.65772957]
[1722067511379,0.0666,68303.0,68297.0,2.65772785]
[1722067511542,0.0666,68303.0,68297.0,2.62972785]
[1722067511740,0.0666,68303.0,68297.0,2.53608657]
[1722067511940,0.0666,68303.0,68297.0,2.66667453]
[1722067512500,0.0666,68303.0,68297.0,2.65267453]
[1722067512721,0.0666,68303.0,68297.0,2.66667453]
[1722067514798,0.0666,68303.0,68297.0,2.66667896]
[1722067518265,0.0666,68303.0,68297.0,2.66667887]
[1722067518694,0.0666,68306.0,68297.0,2.66667887]
[1722067520464,0.0666,68306.0,68297.0,2.66467887]
[1722067521230,0.0666,68306.0,68297.0,2.66667887]
[1722067521431,0.0666,68306.0,68297.0,2.54503335]
[1722067521654,0.07486,68298.0,68297.0,2.66667939]
[1722067521854,0.00826,68298.0,68297.0,2.66667939]
[1722067522673,0.00826,68298.0,68297.0,2.74687939]
[1722067525037,0.00826,68298.0,68297.0,2.8114795]
[1722067525242,0.00826,68298.0,68297.0,2.8955795]
[1722067526226,0.00826,68298.0,68297.0,2.6435795]
[1722067527148,0.00826,68298.0,68297.0,2.7507795]
[1722067527558,0.00826,68298.0,68297.0,1.8901035]
[1722067527736,0.15326,68298.0,68297.0,1.50574393]
[1722067527940,0.15326,68298.0,68297.0,1.49679715]
[1722067528337,0.15326,68298.0,68297.0,1.375151]
[1722067528564,0.15326,68298.0,68297.0,1.49681645]
[1722067528888,0.15326,68298.0,68297.0,1.46881645]
[1722067529099,0.15326,68298.0,68297.0,1.49681645]
[1722067530308,0.15326,68298.0,68297.0,1.48281645]
[1722067530929,0.15326,68298.0,68297.0,1.49681645]
[1722067531858,0.15326,68298.0,68297.0,1.375151]
[1722067532064,0.15326,68298.0,68297.0,1.49681644]
[1722067534523,0.15326,68298.0,68297.0,1.375151]
[1722067538015,0.15326,68298.0,68297.0,0.05738]
[1722067538131,0.19715234,68298.0,68297.0,0.05738]
[1722067538332,0.21909851,68298.0,68297.0,0.028]
[1722067538527,0.15326,68298.0,68297.0,0.028]
[1722067538784,0.1548142,68298.0,68297.0,0.014]
[1722067538982,0.3012312,68298.0,68297.0,0.014]
[1722067539181,0.41097977,68298.0,68297.0,0.028]
[1722067539359,0.45482223,68298.0,68297.0,0.028]
[1722067539677,0.1548142,68298.0,68297.0,0.014]
[1722067540041,0.1548142,68298.0,68297.0,0.017]
[1722067540237,0.3012312,68298.0,68297.0,0.014]
[1722067540603,0.584257,68297.0,68296.0,0.000924]
[1722067540803,0.92419904,68297.0,68296.0,0.000924]
[1722067541021,1.21703704,68297.0,68296.0,0.000924]
[1722067541756,1.31703704,68297.0,68296.0,0.000924]
[1722067542165,1.31691047,68297.0,68296.0,0.000924]
[1722067543345,0.14644,68287.0,68286.0,0.000924]
[1722067543526,0.1076,68287.0,68286.0,0.000924]
[1722067543902,0.25404,68287.0,68286.0,0.000924]
[1722067544082,0.1091542,68287.0,68286.0,0.000924]
[1722067544689,0.25404,68287.0,68286.0,0.007924]
[1722067544886,0.25404,68287.0,68286.0,0.017924]
[1722067545561,0.1091542,68287.0,68286.0,0.017924]
[1722067545984,0.2555942,68287.0,68286.0,0.017924]
[1722067546193,0.25404,68287.0,68286.0,0.017924]
[1722067546309,0.1076,68287.0,68286.0,0.017924]
[1722067546665,0.1091542,68287.0,68286.0,0.017924]
[1722067547839,0.2555942,68287.0,68286.0,0.017924]
[1722067548034,0.1076,68287.0,68286.0,0.017924]
[1722067548445,0.1091542,68287.0,68286.0,0.017924]
[1722067548928,0.1076,68287.0,68286.0,0.017924]
[1722067550697,0.1076,68287.0,68286.0,0.164366]
[1722067551045,0.1076,68287.0,68286.0,0.457251]
[1722067551877,0.1076,68287.0,68286.0,0.164366]
[1722067553874,0.1076,68287.0,68286.0,0.017924]
[1722067554171,0.1076,68287.0,68286.0,0.164366]
[1722067555539,0.1076,68287.0,68286.0,0.017924]
[1722067555752,0.1076,68287.0,68286.0,0.164366]
[1722067557546,0.1076,68287.0,68286.0,0.017924]
[1722067558457,0.1091542,68287.0,68286.0,0.017924]
[1722067559085,0.2555942,68287.0,68286.0,0.017924]
[1722067559284,0.1091542,68287.0,68286.0,0.017924]
[1722067560301,0.2555942,68287.0,68286.0,0.017924]
[1722067560497,0.1091542,68287.0,68286.0,0.017924]
[1722067560898,0.1076,68287.0,68286.0,0.017924]
[1722067561335,0.1091542,68287.0,68286.0,0.017924]
[1722067561893,0.25404,68287.0,68286.0,0.017924]
[1722067562568,1.1842372,68287.0,68286.0,0.017924]
[1722067562781,1.58272658,68287.0,68286.0,0.017924]
[1722067562996,1.87405338,68287.0,68286.0,0.017924]
[1722067563434,1.87405338,68287.0,68286.0,0.010924]
[1722067563667,1.87560758,68287.0,68286.0,0.000924]
[1722067563881,1.87760758,68287.0,68286.0,0.001924]
[1722067564103,2.02986715,68287.0,68286.0,0.001924]
[1722067564316,2.02786715,68287.0,68286.0,0.000924]
[1722067564534,2.02986715,68287.0,68286.0,0.001924]
[1722067564972,2.02831295,68287.0,68286.0,0.001924]
[1722067565196,2.19042357,68287.0,68286.0,0.00132579]
[1722067565426,2.2392103,68287.0,68286.0,0.00132579]
[1722067565853,2.3234203,68287.0,68286.0,0.00032579]
[1722067566272,2.33995567,68287.0,68286.0,0.00132579]
[1722067566478,2.33595567,68287.0,68286.0,0.00132579]
[1722067566680,2.41843071,68287.0,68286.0,0.00132579]
[1722067567089,2.41843071,68287.0,68286.0,0.00232579]
[1722067567090,2.87971171,68287.0,68286.0,0.00232579]
[1722067567339,2.87971171,68287.0,68279.0,0.000924]
[1722067567340,1.907798,68280.0,68279.0,0.000924]
[1722067567599,1.907798,68280.0,68271.0,0.000924]
[1722067567600,0.396472,68272.0,68271.0,0.000924]
[1722067567819,1.81409373,68272.0,68271.0,0.000924]
[1722067569027,2.10703873,68272.0,68271.0,0.000924]
[1722067569683,2.13002292,68272.0,68271.0,0.000924]
[1722067569887,2.13102292,68272.0,68271.0,0.000924]
[1722067570116,2.13994523,68272.0,68271.0,0.000924]
[1722067570323,2.23268352,68272.0,68271.0,0.000924]
[1722067571069,1.59700023,68272.0,68271.0,0.000924]
[1722067571288,1.25405523,68272.0,68271.0,0.07605379]
[1722067571467,0.96411023,68272.0,68271.0,0.07605379]
[1722067571668,0.67116523,68272.0,68271.0,0.07605379]
[1722067571851,0.6223785,68272.0,68271.0,0.07605379]
[1722067572054,0.96555344,68272.0,68271.0,0.000924]
[1722067572297,0.9153235,68272.0,68271.0,0.000924]
[1722067573271,0.7753235,68272.0,68271.0,0.000924]
[1722067573591,1.0682685,68272.0,68271.0,0.000924]
[1722067573793,1.11844013,68272.0,68271.0,0.000924]
[1722067574193,0.4823785,68272.0,68271.0,0.000924]
[1722067574373,0.7753235,68272.0,68271.0,0.000924]
[1722067576224,0.0359065,68272.0,68271.0,0.000924]
[1722067576436,0.0359065,68272.0,68271.0,0.147399]
[1722067576607,0.01292231,68272.0,68271.0,0.147399]
[1722067577038,0.01292231,68272.0,68271.0,0.000924]
[1722067577552,0.01292231,68272.0,68271.0,0.147399]
[1722067577931,0.01292231,68272.0,68271.0,0.000924]
[1722067578343,0.01292231,68272.0,68271.0,0.147399]
[1722067579830,0.07164031,68272.0,68271.0,0.147399]
[1722067581700,0.07164031,68272.0,68271.0,0.440349]
[1722067581938,0.062718,68272.0,68271.0,0.440349]
[1722067582194,0.062718,68272.0,68271.0,0.733299]
[1722067582618,0.062718,68272.0,68271.0,0.440349]
[1722067585344,0.062718,68272.0,68271.0,0.000924]
[1722067585661,0.146918,68272.0,68271.0,0.000924]
[1722067587558,0.19622263,68272.0,68271.0,0.000924]
[1722067587965,0.84079507,68272.0,68271.0,0.000924]
[1722067588304,1.19994007,68272.0,68271.0,0.000924]
[1722067589121,1.19969514,68272.0,68271.0,0.000924]
[1722067591507,1.74264014,68272.0,68271.0,0.000924]
[1722067591709,1.80836872,68272.0,68271.0,0.000924]
[1722067592133,1.74264014,68272.0,68271.0,0.000924]
[1722067592610,2.08037101,68272.0,68271.0,0.000924]
[1722067592816,2.09271417,68272.0,68271.0,0.000924]
[1722067593040,1.98894598,68272.0,68271.0,0.000924]
[1722067593285,2.18122649,68272.0,68271.0,0.000924]
[1722067593502,2.07165544,68272.0,68271.0,0.000924]
[1722067595429,2.36460044,68272.0,68271.0,0.000924]
[1722067595595,2.51486001,68272.0,68271.0,0.000924]
[1722067596067,2.43086722,68272.0,68271.0,0.000924]
[1722067596279,2.36480765,68272.0,68271.0,0.000924]
[1722067596418,2.36180765,68272.0,68271.0,0.000924]
[1722067596619,2.37480765,68272.0,68271.0,0.000924]
[1722067597028,2.38780765,68272.0,68271.0,0.000924]
[1722067597230,2.37380765,68272.0,68271.0,0.000924]
[1722067597411,2.38780765,68272.0,68271.0,0.000924]
[1722067597968,2.53806722,68272.0,68271.0,0.000924]
[1722067598168,2.38780765,68272.0,68271.0,0.000924]
[1722067598760,1.97635662,68272.0,68271.0,0.000924]
[1722067598958,1.7119618,68272.0,68271.0,0.000924]
[1722067599161,1.66281288,68272.0,68271.0,0.000924]
[1722067599358,1.71281288,68272.0,68271.0,0.000924]
[1722067599766,1.939825,68272.0,68271.0,0.000924]
[1722067601212,2.09008457,68272.0,68271.0,0.000924]
[1722067601732,1.939825,68272.0,68271.0,0.000924]
[1722067602831,1.96281429,68272.0,68271.0,0.000924]
[1722067604081,2.09517919,68272.0,68271.0,0.000924]
[1722067604775,1.89517919,68272.0,68271.0,0.000924]
[1722067606809,1.84517919,68272.0,68271.0,0.000924]
[1722067607008,1.99543876,68272.0,68271.0,0.000924]
[1722067607249,2.1436924,68272.0,68271.0,0.000924]
[1722067608396,1.8221899,68272.0,68271.0,0.000924]
[1722067608814,2.07474302,68272.0,68271.0,0.000924]
[1722067609232,2.36768802,68272.0,68271.0,0.000924]
[1722067610817,2.36614044,68272.0,68271.0,0.000924]
[1722067611291,1.757675,68271.0,68270.0,0.12096969]
[1722067611521,2.13875189,68271.0,68270.0,0.09097721]
[1722067612603,2.15075189,68271.0,68270.0,0.09097721]
[1722067613024,2.13875189,68271.0,68270.0,0.09097721]
[1722067613383,2.22680189,68271.0,68270.0,0.02977739]
[1722067613750,2.24080189,68271.0,68270.0,0.02977739]
[1722067614343,2.25480189,68271.0,68270.0,0.02977739]
[1722067614539,2.24080189,68271.0,68270.0,0.02977739]
[1722067614957,2.10454232,68271.0,68270.0,0.02977739]
[1722067615757,1.98813301,68271.0,68270.0,0.02977739]